[Event "Early-Titled-Tuesday-Blitz-April-16-2024"]
[Site "Chess.com"]
[Date "2024.04.16"]
[Round "5"]
[White "Salem-AR"]
[Black "Makswolf200817"]
[Result "1-0"]
[WhiteElo "3027"]
[BlackElo "2788"]
[TimeControl "180+1"]
[EndTime "8:55:52 PDT"]
[Termination "Salem-AR won on time"]

1. d4 {[%clk 0:03:00.9]} 1... d5 {[%clk 0:02:59.7]} 2. Nf3 {[%clk 0:02:59.5]}
2... Nf6 {[%clk 0:02:59.2]} 3. e3 {[%clk 0:02:59.3]} 3... e6 {[%clk 0:02:58.2]}
4. Bd3 {[%clk 0:02:59.6]} 4... c5 {[%clk 0:02:53.5]} 5. b3 {[%clk 0:02:59.2]}
5... cxd4 {[%clk 0:02:53.6]} 6. exd4 {[%clk 0:02:59.3]} 6... Nc6 {[%clk
0:02:52.8]} 7. O-O {[%clk 0:02:59.3]} 7... g6 {[%clk 0:02:43]} 8. Re1 {[%clk
0:02:55.3]} 8... Bg7 {[%clk 0:02:43.1]} 9. Ba3 {[%clk 0:02:54.1]} 9... Ne7
{[%clk 0:02:40.2]} 10. c4 {[%clk 0:02:48.1]} 10... O-O {[%clk 0:02:38.7]} 11.
Nc3 {[%clk 0:02:46.6]} 11... Re8 {[%clk 0:02:32.5]} 12. Rc1 {[%clk 0:02:40.1]}
12... Bd7 {[%clk 0:02:12]} 13. Ne5 {[%clk 0:02:34.9]} 13... Bc6 {[%clk
0:01:58.7]} 14. Bb1 {[%clk 0:02:17.3]} 14... Rc8 {[%clk 0:01:47.4]} 15. Qe2
{[%clk 0:01:57.3]} 15... dxc4 {[%clk 0:01:40]} 16. bxc4 {[%clk 0:01:57.2]} 16...
Nf5 {[%clk 0:01:24.5]} 17. Bxf5 {[%clk 0:01:55.1]} 17... exf5 {[%clk 0:01:23]}
18. Rcd1 {[%clk 0:01:07.6]} 18... Qa5 {[%clk 0:00:58]} 19. Qb2 {[%clk
0:01:04.4]} 19... Be4 {[%clk 0:00:42]} 20. f3 {[%clk 0:00:55.7]} 20... Bc6
{[%clk 0:00:40.6]} 21. Qb4 {[%clk 0:00:44.8]} 21... Qa6 {[%clk 0:00:21.1]} 22.
Bb2 {[%clk 0:00:41.9]} 22... Nd7 {[%clk 0:00:20.1]} 23. f4 {[%clk 0:00:26.7]}
23... Nf6 {[%clk 0:00:19.5]} 24. d5 {[%clk 0:00:26.5]} 24... Bd7 {[%clk
0:00:19.8]} 25. a4 {[%clk 0:00:24]} 25... Bf8 {[%clk 0:00:19.5]} 26. Qb3 {[%clk
0:00:24]} 26... Bc5+ {[%clk 0:00:19]} 27. Kh1 {[%clk 0:00:24.6]} 27... Ng4
{[%clk 0:00:19]} 28. Nxg4 {[%clk 0:00:24]} 28... fxg4 {[%clk 0:00:18.4]} 29. Ne4
{[%clk 0:00:24.7]} 29... Be7 {[%clk 0:00:15.2]} 30. d6 {[%clk 0:00:23.6]} 30...
Bd8 {[%clk 0:00:15.3]} 31. Qc3 {[%clk 0:00:24.3]} 31... f6 {[%clk 0:00:04]} 32.
Nxf6+ {[%clk 0:00:24.9]} 32... Bxf6 {[%clk 0:00:03]} 33. Qxf6 {[%clk 0:00:25.8]}
1-0

[Event "Early-Titled-Tuesday-Blitz-April-16-2024"]
[Site "Chess.com"]
[Date "2024.04.16"]
[Round "5"]
[White "chess_blitz00"]
[Black "Yeritsyaan"]
[Result "0-1"]
[WhiteElo "2507"]
[BlackElo "2661"]
[TimeControl "180+1"]
[EndTime "8:55:53 PDT"]
[Termination "Yeritsyaan won by checkmate"]

1. b3 {[%clk 0:03:00.9]} 1... e5 {[%clk 0:02:59.7]} 2. Bb2 {[%clk 0:03:01.3]}
2... Nc6 {[%clk 0:02:58.6]} 3. g3 {[%clk 0:02:57.3]} 3... g6 {[%clk 0:02:58.4]}
4. Bg2 {[%clk 0:02:57.9]} 4... Bg7 {[%clk 0:02:59]} 5. Nf3 {[%clk 0:02:57]} 5...
Nge7 {[%clk 0:02:59.4]} 6. O-O {[%clk 0:02:56.7]} 6... d5 {[%clk 0:02:59.7]} 7.
d3 {[%clk 0:02:56.9]} 7... O-O {[%clk 0:02:59.2]} 8. e4 {[%clk 0:02:57.5]} 8...
d4 {[%clk 0:02:54.5]} 9. a4 {[%clk 0:02:57.1]} 9... a5 {[%clk 0:02:54.1]} 10.
Na3 {[%clk 0:02:56.5]} 10... h6 {[%clk 0:02:51.7]} 11. Nc4 {[%clk 0:02:49.9]}
11... f5 {[%clk 0:02:51.4]} 12. exf5 {[%clk 0:02:47.8]} 12... Bxf5 {[%clk
0:02:49.3]} 13. Nfd2 {[%clk 0:02:37.6]} 13... Nd5 {[%clk 0:02:45.5]} 14. Ne4
{[%clk 0:02:32.2]} 14... b6 {[%clk 0:02:34.8]} 15. Qe2 {[%clk 0:02:22.2]} 15...
Qd7 {[%clk 0:02:34.6]} 16. Rae1 {[%clk 0:02:13.7]} 16... Rae8 {[%clk 0:02:34]}
17. Qd2 {[%clk 0:01:43.8]} 17... Bh3 {[%clk 0:02:29]} 18. Qe2 {[%clk 0:01:36.2]}
18... Bxg2 {[%clk 0:02:23.7]} 19. Kxg2 {[%clk 0:01:37.1]} 19... Qf5 {[%clk
0:02:20.4]} 20. Kh1 {[%clk 0:01:28.9]} 20... g5 {[%clk 0:02:17.1]} 21. Ned2
{[%clk 0:01:24.5]} 21... Nc3 {[%clk 0:02:14.1]} 22. Qh5 {[%clk 0:01:08.7]} 22...
Nb4 {[%clk 0:02:06.5]} 23. Rc1 {[%clk 0:00:58]} 23... Nca2 {[%clk 0:01:59.3]}
24. Ra1 {[%clk 0:00:50.7]} 24... Nc3 {[%clk 0:01:46]} 25. Bxc3 {[%clk
0:00:47.6]} 25... dxc3 {[%clk 0:01:44.3]} 26. Ne3 {[%clk 0:00:48.1]} 26... Qe6
{[%clk 0:01:30.1]} 27. Ne4 {[%clk 0:00:48.1]} 27... Qc6 {[%clk 0:01:20.8]} 28.
Rae1 {[%clk 0:00:40.8]} 28... Re7 {[%clk 0:01:12.9]} 29. Kg1 {[%clk 0:00:39.1]}
29... Ref7 {[%clk 0:01:11.1]} 30. Re2 {[%clk 0:00:33.3]} 30... Na6 {[%clk
0:01:04.9]} 31. Nd1 {[%clk 0:00:29.9]} 31... Nc5 {[%clk 0:01:02.9]} 32. Ndxc3
{[%clk 0:00:27.7]} 32... Ne6 {[%clk 0:01:00.7]} 33. Re3 {[%clk 0:00:18.1]} 33...
Nd4 {[%clk 0:00:57.9]} 34. Qd1 {[%clk 0:00:18.6]} 34... Qe6 {[%clk 0:00:54.1]}
35. Kg2 {[%clk 0:00:17]} 35... g4 {[%clk 0:00:52.5]} 36. Nd2 {[%clk 0:00:13.6]}
36... h5 {[%clk 0:00:51.4]} 37. Nce4 {[%clk 0:00:08.2]} 37... Bh6 {[%clk
0:00:51.6]} 38. f4 {[%clk 0:00:04.8]} 38... gxf3+ {[%clk 0:00:50.7]} 39. Rexf3
{[%clk 0:00:04.1]} 39... Nxf3 {[%clk 0:00:47.5]} 40. Rxf3 {[%clk 0:00:04.7]}
40... Bxd2 {[%clk 0:00:45.8]} 41. Rxf7 {[%clk 0:00:02.7]} 41... Qxf7 {[%clk
0:00:44]} 42. Qxd2 {[%clk 0:00:02.9]} 42... Qf1# {[%clk 0:00:43.3]} 0-1

[Event "Early-Titled-Tuesday-Blitz-April-16-2024"]
[Site "Chess.com"]
[Date "2024.04.16"]
[Round "5"]
[White "Titus369"]
[Black "MomchilPetkov"]
[Result "0-1"]
[WhiteElo "2656"]
[BlackElo "2937"]
[TimeControl "180+1"]
[EndTime "8:55:55 PDT"]
[Termination "MomchilPetkov won on time"]

1. e4 {[%clk 0:03:00.9]} 1... c5 {[%clk 0:02:57.6]} 2. Nf3 {[%clk 0:02:58]} 2...
Nc6 {[%clk 0:02:57.2]} 3. d4 {[%clk 0:02:53.5]} 3... cxd4 {[%clk 0:02:58.1]} 4.
Nxd4 {[%clk 0:02:53.6]} 4... e5 {[%clk 0:02:58.3]} 5. Nb5 {[%clk 0:02:51.4]}
5... d6 {[%clk 0:02:58.4]} 6. N5c3 {[%clk 0:02:30.4]} 6... Be6 {[%clk
0:02:55.6]} 7. Nd5 {[%clk 0:02:28.8]} 7... Rc8 {[%clk 0:02:39.9]} 8. Nbc3 {[%clk
0:02:20.9]} 8... a6 {[%clk 0:02:40.4]} 9. Be3 {[%clk 0:02:17.2]} 9... g6 {[%clk
0:02:40.4]} 10. Bb6 {[%clk 0:02:13.7]} 10... Qd7 {[%clk 0:02:40.2]} 11. Be3
{[%clk 0:02:12.3]} 11... Rb8 {[%clk 0:02:27.2]} 12. a4 {[%clk 0:02:06.5]} 12...
Bg7 {[%clk 0:02:18.2]} 13. Be2 {[%clk 0:01:48.8]} 13... Nf6 {[%clk 0:02:16.6]}
14. Bh6 {[%clk 0:01:45.5]} 14... O-O {[%clk 0:02:12.9]} 15. Nxf6+ {[%clk
0:01:20.1]} 15... Bxf6 {[%clk 0:02:13.8]} 16. Bxf8 {[%clk 0:01:20.1]} 16... Rxf8
{[%clk 0:02:14.7]} 17. h4 {[%clk 0:00:58.6]} 17... Nd4 {[%clk 0:02:10.2]} 18. h5
{[%clk 0:00:53.1]} 18... Bg5 {[%clk 0:02:10.7]} 19. Nd5 {[%clk 0:00:37.8]} 19...
Bxd5 {[%clk 0:01:59.4]} 20. exd5 {[%clk 0:00:38.7]} 20... Qf5 {[%clk 0:01:59.8]}
21. Bd3 {[%clk 0:00:25]} 21... e4 {[%clk 0:01:59.4]} 22. Be2 {[%clk 0:00:25]}
22... Qe5 {[%clk 0:01:39.4]} 23. c3 {[%clk 0:00:22.3]} 23... Nf5 {[%clk
0:01:39.6]} 24. O-O {[%clk 0:00:16.6]} 24... e3 {[%clk 0:01:36.9]} 25. Bd3
{[%clk 0:00:09.4]} 25... exf2+ {[%clk 0:01:36.7]} 26. Rxf2 {[%clk 0:00:09.4]}
26... Be3 {[%clk 0:01:36.8]} 27. Bxf5 {[%clk 0:00:09.7]} 27... Qxf5 {[%clk
0:01:37.7]} 28. Qe2 {[%clk 0:00:02.8]} 28... Bxf2+ {[%clk 0:01:34.7]} 29. Qxf2
{[%clk 0:00:03.7]} 29... Qxh5 {[%clk 0:01:30.2]} 30. Qd4 {[%clk 0:00:02.7]}
30... Re8 {[%clk 0:01:29.8]} 31. Rf1 {[%clk 0:00:03]} 31... Qg5 {[%clk
0:01:23.9]} 32. Qf2 {[%clk 0:00:01.6]} 32... Qxd5 {[%clk 0:01:22.2]} 33. b4
{[%clk 0:00:01.3]} 33... Qe6 {[%clk 0:01:21.4]} 34. a5 {[%clk 0:00:01.7]} 34...
h5 {[%clk 0:01:20.1]} 35. Qf3 {[%clk 0:00:01.7]} 35... Re7 {[%clk 0:01:19.3]}
36. Rd1 {[%clk 0:00:01.5]} 36... Qe5 {[%clk 0:01:08.7]} 37. Rd3 {[%clk
0:00:01.7]} 37... Qe1+ {[%clk 0:01:07]} 38. Kh2 {[%clk 0:00:02.1]} 38... Re4
{[%clk 0:01:07.6]} 39. g3 {[%clk 0:00:01.3]} 39... Re2+ {[%clk 0:01:07.6]} 40.
Kh3 {[%clk 0:00:01.9]} 40... Rf2 {[%clk 0:01:05.7]} 41. Qd5 {[%clk 0:00:01.9]}
41... Rf5 {[%clk 0:00:56.5]} 42. Qg2 {[%clk 0:00:01.6]} 42... Qe6 {[%clk
0:00:53.2]} 43. Kh2 {[%clk 0:00:01.6]} 43... Re5 {[%clk 0:00:53.3]} 44. Rd2
{[%clk 0:00:01.9]} 44... Re4 {[%clk 0:00:51.3]} 45. Qf3 {[%clk 0:00:02.1]} 45...
h4 {[%clk 0:00:48.3]} 46. gxh4 {[%clk 0:00:01.9]} 46... Rxh4+ {[%clk 0:00:49.2]}
47. Kg3 {[%clk 0:00:02.4]} 47... Rh3+ {[%clk 0:00:49]} 48. Kg2 {[%clk
0:00:02.2]} 48... Rxf3 {[%clk 0:00:49.9]} 0-1

[Event "Early-Titled-Tuesday-Blitz-April-16-2024"]
[Site "Chess.com"]
[Date "2024.04.16"]
[Round "5"]
[White "Viktoker"]
[Black "PawnEatingZombie"]
[Result "1-0"]
[WhiteElo "2453"]
[BlackElo "2246"]
[TimeControl "180+1"]
[EndTime "8:55:55 PDT"]
[Termination "Viktoker won on time"]

1. d4 {[%clk 0:02:57.3]} 1... Nf6 {[%clk 0:02:58.6]} 2. c4 {[%clk 0:02:51.8]}
2... g6 {[%clk 0:02:58.4]} 3. Nc3 {[%clk 0:02:52]} 3... Bg7 {[%clk 0:02:57]} 4.
e4 {[%clk 0:02:52.2]} 4... d6 {[%clk 0:02:57.6]} 5. Be2 {[%clk 0:02:49.8]} 5...
O-O {[%clk 0:02:57.9]} 6. Be3 {[%clk 0:02:49.1]} 6... Nc6 {[%clk 0:02:56]} 7. d5
{[%clk 0:02:48.8]} 7... Ne5 {[%clk 0:02:55.1]} 8. h3 {[%clk 0:02:48.2]} 8... c6
{[%clk 0:02:42.6]} 9. Nf3 {[%clk 0:02:48]} 9... Nxf3+ {[%clk 0:02:35.9]} 10.
Bxf3 {[%clk 0:02:48.9]} 10... cxd5 {[%clk 0:02:35.8]} 11. exd5 {[%clk
0:02:46.8]} 11... Bd7 {[%clk 0:02:24.6]} 12. O-O {[%clk 0:02:46.1]} 12... a6
{[%clk 0:02:23.8]} 13. Bd4 {[%clk 0:02:45.5]} 13... Qc7 {[%clk 0:01:55.8]} 14.
b3 {[%clk 0:02:42.7]} 14... b5 {[%clk 0:01:54.9]} 15. cxb5 {[%clk 0:02:39.3]}
15... axb5 {[%clk 0:01:55.1]} 16. Rc1 {[%clk 0:02:39.4]} 16... Qb7 {[%clk
0:01:47]} 17. Re1 {[%clk 0:02:37.9]} 17... Rfe8 {[%clk 0:01:45.7]} 18. Ne4
{[%clk 0:02:24.3]} 18... Nxe4 {[%clk 0:01:36.3]} 19. Bxg7 {[%clk 0:02:25.2]}
19... Kxg7 {[%clk 0:01:34.4]} 20. Rxe4 {[%clk 0:02:20]} 20... Rxa2 {[%clk
0:01:27.7]} 21. Qd4+ {[%clk 0:02:19.4]} 21... Kg8 {[%clk 0:01:27.6]} 22. Rce1
{[%clk 0:02:19.6]} 22... Bf5 {[%clk 0:01:21.7]} 23. Rh4 {[%clk 0:02:16.1]} 23...
Qa7 {[%clk 0:01:12.7]} 24. Qxa7 {[%clk 0:01:06.6]} 24... Rxa7 {[%clk 0:01:13.6]}
25. Rb4 {[%clk 0:01:06.4]} 25... Bd7 {[%clk 0:01:11.6]} 26. Rc1 {[%clk
0:01:04.4]} 26... Ra2 {[%clk 0:01:03.6]} 27. Rc7 {[%clk 0:01:02.1]} 27... Rd8
{[%clk 0:01:04]} 28. g4 {[%clk 0:00:58.3]} 28... g5 {[%clk 0:01:01.7]} 29. Kg2
{[%clk 0:00:57.8]} 29... Kg7 {[%clk 0:01:01.8]} 30. Re4 {[%clk 0:00:55.2]} 30...
Kf6 {[%clk 0:01:01.5]} 31. Re3 {[%clk 0:00:52.9]} 31... Rb2 {[%clk 0:00:58.8]}
32. Be4 {[%clk 0:00:52.6]} 32... h6 {[%clk 0:00:57.7]} 33. Rf3+ {[%clk
0:00:46.1]} 33... Ke5 {[%clk 0:00:47.6]} 34. Re3 {[%clk 0:00:44.3]} 34... Kd4
{[%clk 0:00:42]} 35. Bf3 {[%clk 0:00:40.9]} 35... e6 {[%clk 0:00:18.7]} 36. Re1
{[%clk 0:00:38.7]} 36... exd5 {[%clk 0:00:11.8]} 37. Rd1+ {[%clk 0:00:38.9]}
37... Ke5 {[%clk 0:00:11.7]} 38. Rxd5+ {[%clk 0:00:34.9]} 38... Ke6 {[%clk
0:00:11.2]} 39. Rd3 {[%clk 0:00:34.4]} 39... f6 {[%clk 0:00:04.6]} 40. Re3+
{[%clk 0:00:34.2]} 40... Kf7 {[%clk 0:00:04.6]} 41. Bc6 {[%clk 0:00:33.6]} 1-0

[Event "Early-Titled-Tuesday-Blitz-April-16-2024"]
[Site "Chess.com"]
[Date "2024.04.16"]
[Round "5"]
[White "teresin05"]
[Black "masterofpuppets2"]
[Result "1-0"]
[WhiteElo "2328"]
[BlackElo "2458"]
[TimeControl "180+1"]
[EndTime "8:55:55 PDT"]
[Termination "teresin05 won by resignation"]

1. e4 {[%clk 0:02:53.1]} 1... e5 {[%clk 0:02:59.7]} 2. Nf3 {[%clk 0:02:47.3]}
2... Nc6 {[%clk 0:03:00]} 3. d4 {[%clk 0:02:47.8]} 3... exd4 {[%clk 0:03:00.1]}
4. Nxd4 {[%clk 0:02:48.7]} 4... Nf6 {[%clk 0:02:58.3]} 5. Nxc6 {[%clk
0:02:47.4]} 5... bxc6 {[%clk 0:02:59.2]} 6. e5 {[%clk 0:02:38.9]} 6... Qe7
{[%clk 0:02:59]} 7. Qe2 {[%clk 0:02:38.7]} 7... Nd5 {[%clk 0:02:59.4]} 8. g3
{[%clk 0:02:36.8]} 8... g6 {[%clk 0:02:57.6]} 9. c4 {[%clk 0:02:31.7]} 9... Ba6
{[%clk 0:02:56.5]} 10. b3 {[%clk 0:02:30.9]} 10... Bg7 {[%clk 0:02:56.3]} 11.
Bb2 {[%clk 0:02:29.7]} 11... O-O {[%clk 0:02:55.5]} 12. Bg2 {[%clk 0:02:28.4]}
12... Rae8 {[%clk 0:02:55.8]} 13. O-O {[%clk 0:02:28.1]} 13... Bxe5 {[%clk
0:02:56.1]} 14. Qxe5 {[%clk 0:02:27.8]} 14... Qxe5 {[%clk 0:02:57]} 15. Bxe5
{[%clk 0:02:27.9]} 15... Rxe5 {[%clk 0:02:57.9]} 16. cxd5 {[%clk 0:02:28]} 16...
Bxf1 {[%clk 0:02:58.8]} 17. Kxf1 {[%clk 0:02:21.2]} 17... cxd5 {[%clk
0:02:58.3]} 18. f4 {[%clk 0:02:19.3]} 18... Re3 {[%clk 0:02:56]} 19. Bxd5 {[%clk
0:02:18.5]} 19... Rfe8 {[%clk 0:02:54]} 20. Nd2 {[%clk 0:02:19.2]} 20... Rd3
{[%clk 0:02:51.7]} 21. Ne4 {[%clk 0:02:19.1]} 21... Kg7 {[%clk 0:02:43.8]} 22.
Bc4 {[%clk 0:02:16.6]} 22... Rd4 {[%clk 0:02:34]} 23. Ng5 {[%clk 0:02:05]} 23...
d5 {[%clk 0:02:33.1]} 24. Bb5 {[%clk 0:02:00]} 24... Re3 {[%clk 0:02:29.1]} 25.
Rc1 {[%clk 0:01:56.2]} 25... h6 {[%clk 0:02:26.7]} 26. Nf3 {[%clk 0:01:37.3]}
26... Rb4 {[%clk 0:01:57.5]} 27. Be2 {[%clk 0:01:20.1]} 27... d4 {[%clk
0:01:52.5]} 28. Rxc7 {[%clk 0:01:11]} 28... d3 {[%clk 0:01:51.5]} 29. Bd1 {[%clk
0:01:11.4]} 29... a5 {[%clk 0:01:40.2]} 30. Kf2 {[%clk 0:01:03]} 30... Rbe4
{[%clk 0:01:39.7]} 31. Rd7 {[%clk 0:00:42.2]} 31... Kf8 {[%clk 0:01:14.4]} 32.
Ne5 {[%clk 0:00:35.9]} 32... f6 {[%clk 0:01:00.5]} 33. Nxd3 {[%clk 0:00:31.2]}
33... Ke8 {[%clk 0:00:59.6]} 34. Rd5 {[%clk 0:00:30.9]} 34... Ke7 {[%clk
0:00:51.8]} 35. Nc5 {[%clk 0:00:24.1]} 35... Re6 {[%clk 0:00:30.6]} 36. Nxe6
{[%clk 0:00:23.9]} 36... Rxe6 {[%clk 0:00:30.8]} 37. Rxa5 {[%clk 0:00:23.8]}
37... Rd6 {[%clk 0:00:31.5]} 38. Be2 {[%clk 0:00:23.9]} 38... Rd2 {[%clk
0:00:31.9]} 39. a4 {[%clk 0:00:23]} 39... g5 {[%clk 0:00:31.7]} 40. fxg5 {[%clk
0:00:22.1]} 40... hxg5 {[%clk 0:00:32.6]} 41. Rb5 {[%clk 0:00:18.8]} 41... Ra2
{[%clk 0:00:31.7]} 42. a5 {[%clk 0:00:18.9]} 42... Kd6 {[%clk 0:00:32.6]} 43. a6
{[%clk 0:00:18.5]} 43... Kc6 {[%clk 0:00:33.5]} 44. Rb4 {[%clk 0:00:16.2]} 44...
Kc5 {[%clk 0:00:33.8]} 45. Ra4 {[%clk 0:00:15.7]} 45... Kd5 {[%clk 0:00:34.7]}
46. Rxa2 {[%clk 0:00:15.3]} 1-0

[Event "Early-Titled-Tuesday-Blitz-April-16-2024"]
[Site "Chess.com"]
[Date "2024.04.16"]
[Round "5"]
[White "Kirill_Klukin"]
[Black "dmosesov"]
[Result "0-1"]
[WhiteElo "2821"]
[BlackElo "2633"]
[TimeControl "180+1"]
[EndTime "8:55:56 PDT"]
[Termination "dmosesov won on time"]

1. d4 {[%clk 0:03:00.9]} 1... Nf6 {[%clk 0:02:59.9]} 2. Nf3 {[%clk 0:03:00.8]}
2... b6 {[%clk 0:02:55.9]} 3. e3 {[%clk 0:03:00.2]} 3... Bb7 {[%clk 0:02:56.3]}
4. Bd3 {[%clk 0:03:01]} 4... g6 {[%clk 0:02:56.3]} 5. b3 {[%clk 0:03:00.8]} 5...
Bg7 {[%clk 0:02:56.9]} 6. Bb2 {[%clk 0:03:01.5]} 6... O-O {[%clk 0:02:57.6]} 7.
O-O {[%clk 0:03:02.2]} 7... c5 {[%clk 0:02:57.8]} 8. c4 {[%clk 0:03:02.5]} 8...
cxd4 {[%clk 0:02:57.3]} 9. Nxd4 {[%clk 0:03:00.6]} 9... d5 {[%clk 0:02:56.9]}
10. Nc3 {[%clk 0:02:59.7]} 10... e5 {[%clk 0:02:52.9]} 11. Nde2 {[%clk
0:02:59.5]} 11... e4 {[%clk 0:02:41.9]} 12. Bc2 {[%clk 0:02:59.1]} 12... dxc4
{[%clk 0:02:42.1]} 13. bxc4 {[%clk 0:02:53.6]} 13... Nbd7 {[%clk 0:02:20.5]} 14.
Ba3 {[%clk 0:02:37.4]} 14... Nc5 {[%clk 0:02:19]} 15. Rb1 {[%clk 0:02:36.7]}
15... Bc6 {[%clk 0:02:15.7]} 16. Nd4 {[%clk 0:02:21.8]} 16... Qc8 {[%clk
0:02:02.3]} 17. Nxc6 {[%clk 0:02:03.5]} 17... Qxc6 {[%clk 0:02:03.2]} 18. Nd5
{[%clk 0:02:04.2]} 18... Rfe8 {[%clk 0:01:52.9]} 19. f3 {[%clk 0:01:18]} 19...
Nxd5 {[%clk 0:00:59.7]} 20. cxd5 {[%clk 0:01:16.3]} 20... Qc7 {[%clk 0:01:00.1]}
21. fxe4 {[%clk 0:01:05.7]} 21... Nxe4 {[%clk 0:00:56]} 22. d6 {[%clk
0:00:46.2]} 22... Qc3 {[%clk 0:00:40.6]} 23. Bxe4 {[%clk 0:00:31.8]} 23... Rxe4
{[%clk 0:00:39.7]} 24. Qd5 {[%clk 0:00:26.4]} 24... Qxe3+ {[%clk 0:00:29.8]} 25.
Kh1 {[%clk 0:00:26.4]} 25... Rf8 {[%clk 0:00:22.5]} 26. d7 {[%clk 0:00:26]}
26... Rd4 {[%clk 0:00:20.6]} 27. Qc6 {[%clk 0:00:02.7]} 27... Qxa3 {[%clk
0:00:19.5]} 28. Qc8 {[%clk 0:00:01.8]} 28... Qd6 {[%clk 0:00:18]} 29. d8=Q
{[%clk 0:00:01.1]} 29... Qxd8 {[%clk 0:00:17.8]} 30. Qa6 {[%clk 0:00:01.6]}
30... Qd5 {[%clk 0:00:16.8]} 31. Qxa7 {[%clk 0:00:01.6]} 31... Rd2 {[%clk
0:00:17]} 32. Rg1 {[%clk 0:00:01.4]} 32... Bd4 {[%clk 0:00:17.2]} 0-1

[Event "Early-Titled-Tuesday-Blitz-April-16-2024"]
[Site "Chess.com"]
[Date "2024.04.16"]
[Round "5"]
[White "Khromkin"]
[Black "HajiyevKanan"]
[Result "1/2-1/2"]
[WhiteElo "2378"]
[BlackElo "2623"]
[TimeControl "180+1"]
[EndTime "8:55:57 PDT"]
[Termination "Game drawn by repetition"]

1. d4 {[%clk 0:02:58.3]} 1... d5 {[%clk 0:02:55.6]} 2. c4 {[%clk 0:02:58.8]}
2... c6 {[%clk 0:02:55.6]} 3. Nf3 {[%clk 0:02:57.6]} 3... Nf6 {[%clk 0:02:53.3]}
4. cxd5 {[%clk 0:02:54.1]} 4... cxd5 {[%clk 0:02:54.2]} 5. Nc3 {[%clk
0:02:54.5]} 5... a6 {[%clk 0:02:54.7]} 6. Bf4 {[%clk 0:02:54.9]} 6... Nc6 {[%clk
0:02:55.3]} 7. Ne5 {[%clk 0:02:55.3]} 7... Qb6 {[%clk 0:02:45.8]} 8. Nxc6 {[%clk
0:02:55.2]} 8... Qxc6 {[%clk 0:02:32.4]} 9. e3 {[%clk 0:02:52.9]} 9... Bf5
{[%clk 0:02:26.7]} 10. Bd3 {[%clk 0:02:32.9]} 10... Bxd3 {[%clk 0:02:25.3]} 11.
Qxd3 {[%clk 0:02:33.4]} 11... e6 {[%clk 0:02:26.2]} 12. O-O {[%clk 0:02:32.9]}
12... Bd6 {[%clk 0:02:26.2]} 13. Bg5 {[%clk 0:02:32.9]} 13... O-O {[%clk
0:02:20.6]} 14. Bxf6 {[%clk 0:02:31.9]} 14... gxf6 {[%clk 0:02:21.5]} 15. f4
{[%clk 0:02:27.4]} 15... f5 {[%clk 0:02:19.9]} 16. g4 {[%clk 0:02:21.4]} 16...
fxg4 {[%clk 0:02:14.7]} 17. f5 {[%clk 0:02:11.5]} 17... Qc4 {[%clk 0:02:11.7]}
18. Qd1 {[%clk 0:02:01.5]} 18... h5 {[%clk 0:02:09]} 19. h3 {[%clk 0:01:57.8]}
19... Kh8 {[%clk 0:02:01.5]} 20. Qe1 {[%clk 0:01:33.2]} 20... Rg8 {[%clk
0:00:44.5]} 21. Qh4 {[%clk 0:01:25.9]} 21... gxh3+ {[%clk 0:00:39.3]} 22. Kh1
{[%clk 0:01:25.6]} 22... Rg7 {[%clk 0:00:17]} 23. Rg1 {[%clk 0:01:21]} 23...
Rag8 {[%clk 0:00:15.5]} 24. Qxh5+ {[%clk 0:01:10.7]} 24... Rh7 {[%clk
0:00:15.4]} 25. Rxg8+ {[%clk 0:01:11]} 25... Kxg8 {[%clk 0:00:16.3]} 26. Rg1+
{[%clk 0:01:10.1]} 26... Rg7 {[%clk 0:00:12.7]} 27. Rxg7+ {[%clk 0:00:55.8]}
27... Kxg7 {[%clk 0:00:13.6]} 28. Qg5+ {[%clk 0:00:55.2]} 28... Kh7 {[%clk
0:00:09.1]} 29. Qh5+ {[%clk 0:00:20.1]} 29... Kg7 {[%clk 0:00:09.7]} 30. Qg5+
{[%clk 0:00:20.5]} 30... Kh7 {[%clk 0:00:10.4]} 31. f6 {[%clk 0:00:20.7]} 31...
Bf8 {[%clk 0:00:10.2]} 32. Qh5+ {[%clk 0:00:21.3]} 32... Kg8 {[%clk 0:00:09.9]}
33. Qg5+ {[%clk 0:00:18.6]} 33... Kh7 {[%clk 0:00:10.5]} 34. Qh5+ {[%clk
0:00:17.5]} 34... Kg8 {[%clk 0:00:10.3]} 35. Qg5+ {[%clk 0:00:17.6]} 35... Kh7
{[%clk 0:00:10.4]} 1/2-1/2

[Event "Early-Titled-Tuesday-Blitz-April-16-2024"]
[Site "Chess.com"]
[Date "2024.04.16"]
[Round "5"]
[White "Gryffindorac8"]
[Black "djano"]
[Result "0-1"]
[WhiteElo "2438"]
[BlackElo "2604"]
[TimeControl "180+1"]
[EndTime "8:55:57 PDT"]
[Termination "djano won on time"]

1. d4 {[%clk 0:03:00.9]} 1... Nf6 {[%clk 0:02:58.9]} 2. c4 {[%clk 0:03:01]} 2...
e5 {[%clk 0:02:59.1]} 3. dxe5 {[%clk 0:03:00.2]} 3... Ng4 {[%clk 0:02:59.6]} 4.
Nf3 {[%clk 0:03:00.2]} 4... Nc6 {[%clk 0:02:56.7]} 5. Bf4 {[%clk 0:02:56]} 5...
Bb4+ {[%clk 0:02:56.1]} 6. Nbd2 {[%clk 0:02:53.7]} 6... Qe7 {[%clk 0:02:55.3]}
7. a3 {[%clk 0:02:45.8]} 7... Ngxe5 {[%clk 0:02:54.7]} 8. Nxe5 {[%clk
0:02:40.1]} 8... Nxe5 {[%clk 0:02:53.3]} 9. e3 {[%clk 0:02:39]} 9... Bxd2+
{[%clk 0:02:49.7]} 10. Qxd2 {[%clk 0:02:37.3]} 10... d6 {[%clk 0:02:47.1]} 11.
Be2 {[%clk 0:02:36.3]} 11... Be6 {[%clk 0:02:46.7]} 12. Rc1 {[%clk 0:02:33.4]}
12... O-O {[%clk 0:02:42.7]} 13. O-O {[%clk 0:02:33]} 13... a5 {[%clk
0:02:37.3]} 14. Rfd1 {[%clk 0:02:28.8]} 14... b6 {[%clk 0:02:35.7]} 15. b4
{[%clk 0:02:24.9]} 15... axb4 {[%clk 0:02:36.6]} 16. axb4 {[%clk 0:02:25.5]}
16... Ra4 {[%clk 0:02:28.4]} 17. c5 {[%clk 0:02:19.5]} 17... bxc5 {[%clk
0:02:16.5]} 18. bxc5 {[%clk 0:02:19.3]} 18... Ra2 {[%clk 0:02:16.5]} 19. cxd6
{[%clk 0:01:43.3]} 19... cxd6 {[%clk 0:02:10.2]} 20. Qxd6 {[%clk 0:01:39.2]}
20... Qxd6 {[%clk 0:02:01]} 21. Rxd6 {[%clk 0:01:40.1]} 21... Ng6 {[%clk
0:01:43.2]} 22. Bf3 {[%clk 0:01:34.2]} 22... Nxf4 {[%clk 0:01:43.2]} 23. exf4
{[%clk 0:01:35.1]} 23... g6 {[%clk 0:01:41.9]} 24. h4 {[%clk 0:01:32.3]} 24...
Rb8 {[%clk 0:01:40.7]} 25. h5 {[%clk 0:01:08.1]} 25... Kg7 {[%clk 0:01:41.2]}
26. Rc7 {[%clk 0:00:52]} 26... Kf6 {[%clk 0:01:23.2]} 27. g4 {[%clk 0:00:25.5]}
27... gxh5 {[%clk 0:00:39.3]} 28. g5+ {[%clk 0:00:08.9]} 28... Kg6 {[%clk
0:00:22.7]} 29. Be4+ {[%clk 0:00:06.4]} 29... Kg7 {[%clk 0:00:23.3]} 30. Rxe6
{[%clk 0:00:05.2]} 30... Re2 {[%clk 0:00:17.8]} 31. Ree7 {[%clk 0:00:03.6]}
31... Rf8 {[%clk 0:00:17.9]} 32. Bd5 {[%clk 0:00:03]} 32... Rd2 {[%clk
0:00:15.7]} 0-1